Cogmind - Beta 12 X1 @@@ ROGUE MODE // 2022.07.19 @ 12:33:06 Player: lsend Result: Destroyed by Y-54 Guardian with Gatling Laser Performance ------------- Evolutions (3) 1500 Regions Visited (10) 2000 Robots Destroyed (0) 0 Value Destroyed (0) 0 Prototype IDs (3) 60 Alien Tech Used (0) 0 Bonus (1148) 1148 TOTAL SCORE: 4708 Bonus ------- Pacifist 928 Follower Combat Kills 20 Entered Garrisons 200 Cogmind --------- Core Integrity 0/700 Matter 255/300 Energy 100/100 System Corruption 1% Temperature Cool (18) Movement Core (50) Location -7/Garrison Parts ------- > --- POWER (1) -------- (None) > --- PROPULSION (5) --- (None) > --- UTILITY (5) ------ Machine Analyzer Visual Processing Unit 0b10 Alert Chip > --- WEAPON (2) ------- Heavy Hammer > --- INVENTORY (5) ---- Light Treads Surge Thruster Small Storage Unit Rocket Launcher Flail Peak State ------------ > --- POWER ------------ (None) > --- PROPULSION ------- Medium Treads Medium Treads Medium Treads > --- UTILITY ---------- Advanced Weight Redist. System Machine Analyzer Visual Processing Unit 0b10 Alert Chip > --- WEAPON ----------- Heavy Hammer > --- INVENTORY -------- Light Treads Surge Thruster Small Storage Unit Rocket Launcher Flail [Rating: 28] Favorites ----------- Power None Propulsion Aluminum Leg Treads Light Treads Leg Aluminum Leg Flight Unit Surge Thruster Utility Visual Processing Unit Device Advanced Weight Redist. System Processor Visual Processing Unit Protection Propulsion Shielding Weapon Heavy Hammer Impact Weapon Heavy Hammer Build | -11 -10 -10 -9 -9 -9 -8 -8 -7 -7 -7 ------- Run | Scr Mat Min Mat Min Exi Min Mat Fac Sto Gar Slots Evolved 6 | . . . 2 . . . 2 2 . . Power . | . . . . . . . . . . . Propulsion 3 | . . . 1 . . . 1 1 . . Utility 3 | . . . 1 . . . 1 1 . . Weapon . | . . . . . . . . . . . Parts Attached 17 | 2 2 . 3 . 1 . 4 1 4 . Power . | . . . . . . . . . . . Engine . | . . . . . . . . . . . Core . | . . . . . . . . . . . Reactor . | . . . . . . . . . . . Propulsion 10 | 2 . . 2 . . . 3 . 3 . Treads 7 | 2 . . . . . . 2 . 3 . Leg 2 | . . . 2 . . . . . . . Wheel . | . . . . . . . . . . . Hover . | . . . . . . . . . . . Flight 1 | . . . . . . . 1 . . . Utility 6 | . 2 . 1 . 1 . 1 . 1 . Device 2 | . 1 . . . . . . . 1 . Storage . | . . . . . . . . . . . Processor 3 | . . . 1 . 1 . 1 . . . Hackware . | . . . . . . . . . . . Protection 1 | . 1 . . . . . . . . . Artifact . | . . . . . . . . . . . Weapon 1 | . . . . . . . . 1 . . Energy Gun . | . . . . . . . . . . . Energy Cannon . | . . . . . . . . . . . Ballistic Gun . | . . . . . . . . . . . Ballistic Cannon . | . . . . . . . . . . . Launcher . | . . . . . . . . . . . Special Weapon . | . . . . . . . . . . . Impact Weapon 1 | . . . . . . . . 1 . . Slashing Weapon . | . . . . . . . . . . . Piercing Weapon . | . . . . . . . . . . . Special Melee Weapon . | . . . . . . . . . . . Unidentified Prototypes 1 | . . . . . 1 . . . . . Parts Lost 11 | . . 3 . . . . . 3 3 2 Power . | . . . . . . . . . . . Propulsion 8 | . . 1 . . . . . 3 3 1 Utility 3 | . . 2 . . . . . . . 1 Weapon . | . . . . . . . . . . . Highest Loss Streak 3 | . . 3 . . . . . 3 2 2 To Critical Strikes . | . . . . . . . . . . . Average Slot Usage (%) 47 | . 44 40 31 44 52 55 54 56 44 43 Treads 11 | . 28 25 11 11 11 11 11 7 8 4 Leg 13 | . . . 11 22 22 22 18 12 . . Device 2 | . 12 7 . . . . . . 5 7 Processor 16 | . . . 9 11 19 22 23 23 23 23 Impact Weapon 2 | . . . . . . . . 7 7 7 Naked Turns . | . . . . . . . . . . . Heaviest Build 3 | . 2 2 . . . . . 3 3 3 Greatest Support 22 | 3 3 3 3 3 3 3 3 22 3 3 Greatest Overweight (x) . | . . . . . . . . . . . Average Overweight (x) . | . . . . . . . . . . . Largest Inventory Capacity 5 | 5 5 5 5 5 5 5 5 5 5 5 Average Capacity 5 | 5 5 5 5 5 5 5 5 5 5 5 Most Carried 5 | 1 1 1 1 3 3 3 5 5 5 5 Average Carried 2 | . 1 1 1 1 3 3 3 5 5 5 Final Capacity 5 | 5 5 5 5 5 5 5 5 5 5 5 Final Carried 5 | 1 1 1 1 3 3 3 5 5 5 5 Class Distribution -------------------- 100% | Mutant Dominant Class ---------------- Mutant | -10/Materials Mutant | -10/Mines Mutant | -9/Materials Mutant | -9/Mines Mutant | -9/Exiles Mutant | -8/Mines Mutant | -8/Materials Mutant | -7/Factory Mutant | -7/Storage Mutant | -7/Garrison Resources | -11 -10 -10 -9 -9 -9 -8 -8 -7 -7 -7 ----------- Run | Scr Mat Min Mat Min Exi Min Mat Fac Sto Gar Matter Collected 264 | 220 . 14 . 30 . . . . . . Remotely . | . . . . . . . . . . . Salvage Created . | . . . . . . . . . . . Parts . | . . . . . . . . . . . Haulers Intercepted . | . . . . . . . . . . . Recyclers Shooed . | . . . . . . . . . . . Parts Field Recycled . | . . . . . . . . . . . Retrieved Matter . | . . . . . . . . . . . Parts Self-Destructed . | . . . . . . . . . . . Prevented . | . . . . . . . . . . . Kills | -11 -10 -10 -9 -9 -9 -8 -8 -7 -7 -7 ------- Run | Scr Mat Min Mat Min Exi Min Mat Fac Sto Gar Combat Hostiles Destroyed . | . . . . . . . . . . . Classes Destroyed . | . . . . . . . . . . . Best Kill Streak . | . . . . . . . . . . . Combat Bots Only . | . . . . . . . . . . . Max Kills in Single Turn . | . . . . . . . . . . . Gunslinging . | . . . . . . . . . . . Exploded . | . . . . . . . . . . . Melee . | . . . . . . . . . . . Uniques/NPCs Destroyed . | . . . . . . . . . . . Combat | -11 -10 -10 -9 -9 -9 -8 -8 -7 -7 -7 -------- Run | Scr Mat Min Mat Min Exi Min Mat Fac Sto Gar Damage Taken 2431 | . 25 383 95 . . . 237 355 1063 273 Core 920 | . 14 90 21 . . . 90 145 352 208 Absorbed by Shields 9 | . . . . . . . . 9 . . Redirected to Shielding 52 | . 3 49 . . . . . . . . Core Remaining (%) 83 | 100 . 58 . . . 94 83 . . . Volleys Fired . | . . . . . . . . . . . Largest . | . . . . . . . . . . . Hottest . | . . . . . . . . . . . Shots Fired . | . . . . . . . . . . . Gun . | . . . . . . . . . . . Cannon . | . . . . . . . . . . . Launcher . | . . . . . . . . . . . Special . | . . . . . . . . . . . Kinetic . | . . . . . . . . . . . Thermal . | . . . . . . . . . . . Explosive . | . . . . . . . . . . . Electromagnetic . | . . . . . . . . . . . Robot Hit Streak . | . . . . . . . . . . . Robot Miss Streak . | . . . . . . . . . . . Penetration Max . | . . . . . . . . . . . Secondary Targets . | . . . . . . . . . . . Shots Hit Robots 7 | . . . . . . . . 3 3 1 Core Hits . | . . . . . . . . . . . Critical Kills . | . . . . . . . . . . . Critical Parts Destroyed . | . . . . . . . . . . . Critical Strikes . | . . . . . . . . . . . Melee Attacks 14 | . . . . . . . . 7 5 2 Impact 14 | . . . . . . . . 7 5 2 Slashing . | . . . . . . . . . . . Piercing . | . . . . . . . . . . . Sneak Attacks 1 | . . . . . . . . 1 . . Combat Hostiles . | . . . . . . . . . . . Follow-up Attacks . | . . . . . . . . . . . Damage Inflicted 244 | . . . . . . . 8 140 78 18 Guns . | . . . . . . . . . . . Cannons . | . . . . . . . . . . . Explosions . | . . . . . . . . . . . Melee 233 | . . . . . . . . 140 75 18 Ramming 11 | . . . . . . . 8 . 3 . Kinetic . | . . . . . . . . . . . Thermal . | . . . . . . . . . . . Explosive . | . . . . . . . . . . . Electromagnetic . | . . . . . . . . . . . Impact 233 | . . . . . . . . 140 75 18 Slashing . | . . . . . . . . . . . Piercing . | . . . . . . . . . . . Highest Corruption 2 | . 2 2 . . . . . . 1 1 Average Corruption 1 | . 2 2 . . . . . . 1 1 Corruption Purged . | . . . . . . . . . . . Corruption Blocked . | . . . . . . . . . . . Effects 2 | . . 2 . . . . . . . . Message Errors 1 | . . 1 . . . . . . . . Matter Fused 1 | . . 1 . . . . . . . . Overload Shots . | . . . . . . . . . . . Overflow Damage . | . . . . . . . . . . . Projectiles . | . . . . . . . . . . . Explosions . | . . . . . . . . . . . Melee . | . . . . . . . . . . . Knockbacks . | . . . . . . . . . . . Impact . | . . . . . . . . . . . Kinetic . | . . . . . . . . . . . Secondary . | . . . . . . . . . . . Self-Inflicted Damage 4 | . . . . . . . 4 . . . Shots . | . . . . . . . . . . . Rammed 4 | . . . . . . . 1 . 3 . Targets Rammed 4 | . . . . . . . 1 . 3 . Kicked . | . . . . . . . . . . . Crushed . | . . . . . . . . . . . Highest Temperature 4 | . . . . . . . . 4 4 2 Average Temperature 3 | . . . . . . . . 3 4 2 Received Heat Transfer 781 | . 15 40 36 . . . 108 192 306 84 Siege Activations . | . . . . . . . . . . . Robots Corrupted . | . . . . . . . . . . . Combat Hostiles . | . . . . . . . . . . . Parts Fried . | . . . . . . . . . . . Impact Corruptions . | . . . . . . . . . . . Robots Melted . | . . . . . . . . . . . Combat Hostiles . | . . . . . . . . . . . Parts Melted . | . . . . . . . . . . . Heat Transferred . | . . . . . . . . . . . Parts Sabotaged . | . . . . . . . . . . . Parts Stolen . | . . . . . . . . . . . Parts Stripped . | . . . . . . . . . . . Power Chain Reactions . | . . . . . . . . . . . Missiles Intercepted . | . . . . . . . . . . . Alert | -11 -10 -10 -9 -9 -9 -8 -8 -7 -7 -7 ------- Run | Scr Mat Min Mat Min Exi Min Mat Fac Sto Gar Peak Influence 87 | . 80 31 37 14 . . 48 87 69 60 Initial 49 | . . 31 . 14 . . . 21 31 49 Average 22 | . 34 17 6 14 . . 7 44 32 49 Maximum Alert Level . | . . . . . . . . . . . Low Security (%) 100 | 100 100 100 100 100 . 100 100 100 100 100 Level 1 . | . . . . . . . . . . . Level 2 . | . . . . . . . . . . . Level 3 . | . . . . . . . . . . . Level 4 . | . . . . . . . . . . . Level 5 . | . . . . . . . . . . . High Security . | . . . . . . . . . . . Max Security . | . . . . . . . . . . . Squads Dispatched 6 | . 1 . 2 . . . 1 2 . . Investigation 3 | . 1 . 1 . . . . 1 . . Extermination . | . . . . . . . . . . . Reinforcement 3 | . . . 1 . . . 1 1 . . Assault . | . . . . . . . . . . . Garrison . | . . . . . . . . . . . Intercept . | . . . . . . . . . . . Searches Triggered . | . . . . . . . . . . . Construction Impeded . | . . . . . . . . . . . Haulers Reinforced 1 | . . . . . . . . 1 . . Active Scanning Responses . | . . . . . . . . . . . Cargo Convoy Interrupts . | . . . . . . . . . . . Stealth | -11 -10 -10 -9 -9 -9 -8 -8 -7 -7 -7 --------- Run | Scr Mat Min Mat Min Exi Min Mat Fac Sto Gar Distress Signals 2 | . . . 1 . . . 1 . . . Communications Jammed . | . . . . . . . . . . . Distress Signals . | . . . . . . . . . . . Times Spotted 65 | . 9 15 7 . . . 6 12 11 5 Peak Tracking Total 11 | . 6 11 5 . . . 7 10 9 7 Tactical Retreats 7 | . 1 1 . . . . . 3 2 . Traps | -11 -10 -10 -9 -9 -9 -8 -8 -7 -7 -7 ------- Run | Scr Mat Min Mat Min Exi Min Mat Fac Sto Gar Traps Triggered 3 | . 1 . 1 . . . . 1 . . Indirectly . | . . . . . . . . . . . Trap Hack Attempts . | . . . . . . . . . . . Triggered . | . . . . . . . . . . . Disarmed . | . . . . . . . . . . . Reprogrammed . | . . . . . . . . . . . Reused . | . . . . . . . . . . . Traps Extracted . | . . . . . . . . . . . Installed . | . . . . . . . . . . . Triggered . | . . . . . . . . . . . Machines | -11 -10 -10 -9 -9 -9 -8 -8 -7 -7 -7 ---------- Run | Scr Mat Min Mat Min Exi Min Mat Fac Sto Gar Machines Disabled . | . . . . . . . . . . . Max in Single Turn . | . . . . . . . . . . . Machines Sabotaged . | . . . . . . . . . . . Garrisons Compromised . | . . . . . . . . . . . Overloaded Fab Kills . | . . . . . . . . . . . Hacking | -11 -10 -10 -9 -9 -9 -8 -8 -7 -7 -7 --------- Run | Scr Mat Min Mat Min Exi Min Mat Fac Sto Gar Machines Accessed 17 | . 3 . 2 . . . 1 3 8 . Terminals 14 | . 2 . 2 . . . 1 2 7 . Fabricators . | . . . . . . . . . . . Repair Stations . | . . . . . . . . . . . Recycling Units 1 | . 1 . . . . . . . . . Scanalyzers . | . . . . . . . . . . . Garrison Access 2 | . . . . . . . . 1 1 . Total Hacks 34 | . 5 . 3 . . . 3 7 16 . Successful 19 | . 2 . 2 . . . . 2 13 . Failed 15 | . 3 . 1 . . . 3 5 3 . Catastrophic 1 | . . . . . . . 1 . . . Database Lockouts . | . . . . . . . . . . . Manual 9 | . . . . . 1 . 3 . 5 . Terminals 27 | . 3 . 3 . . . 3 4 14 . Fabricators . | . . . . . . . . . . . Repair Stations . | . . . . . . . . . . . Recycling Units 2 | . 2 . . . . . . . . . Scanalyzers . | . . . . . . . . . . . Garrison Access 5 | . . . . . . . . 3 2 . Terminal Hacks 14 | . 2 . 2 . . . . 2 8 . Prototype ID Bank 1 | . . . . . . . . . 1 . Open Door 3 | . . . . . . . . . 3 . Branch Access Points 2 | . . . 1 . . . . 1 . . Unreport Threat 1 | . . . . . . . . . 1 . Locate Traps 1 | . 1 . . . . . . . . . Dispatch Records 1 | . . . . . . . . 1 . . Zone Layout 5 | . 1 . 1 . . . . . 3 . Fabricator Hacks . | . . . . . . . . . . . Repair Station Hacks . | . . . . . . . . . . . Recycling Unit Hacks . | . . . . . . . . . . . Scanalyzer . | . . . . . . . . . . . Garrison Access Hacks 1 | . . . . . . . . . 1 . Unlock Access 1 | . . . . . . . . . 1 . Unauthorized Hacks 4 | . . . . . . . . . 4 . Terminals 4 | . . . . . . . . . 4 . Track 3 | . . . . . . . . . 3 . Botnet 1 | . . . . . . . . . 1 . Fabricators . | . . . . . . . . . . . Repair Stations . | . . . . . . . . . . . Recycling Units . | . . . . . . . . . . . Scanalyzers . | . . . . . . . . . . . Garrison Access . | . . . . . . . . . . . Data Cores Recovered . | . . . . . . . . . . . Used . | . . . . . . . . . . . Hacking Detections 7 | . 1 . . . . . 1 2 3 . Full Trace Events 2 | . 1 . . . . . . 1 . . Feedback Events . | . . . . . . . . . . . Feedback Blocked . | . . . . . . . . . . . Robot Schematics Acquired . | . . . . . . . . . . . Robots Built . | . . . . . . . . . . . Authchips . | . . . . . . . . . . . Time . | . . . . . . . . . . . Total Robot Build Rating . | . . . . . . . . . . . Part Schematics Acquired . | . . . . . . . . . . . Parts Built . | . . . . . . . . . . . Authchips . | . . . . . . . . . . . Time . | . . . . . . . . . . . Total Part Build Rating . | . . . . . . . . . . . Parts Repaired . | . . . . . . . . . . . Time . | . . . . . . . . . . . Parts Recycled . | . . . . . . . . . . . Recycled Matter . | . . . . . . . . . . . Retrieved Matter . | . . . . . . . . . . . Retrieved Components . | . . . . . . . . . . . Parts Scanalyzed . | . . . . . . . . . . . Part Schematics Acquired . | . . . . . . . . . . . Parts Damaged . | . . . . . . . . . . . Bothacking | -11 -10 -10 -9 -9 -9 -8 -8 -7 -7 -7 ------------ Run | Scr Mat Min Mat Min Exi Min Mat Fac Sto Gar Used RIF Installer . | . . . . . . . . . . . Robots Hacked . | . . . . . . . . . . . Non-combat . | . . . . . . . . . . . Combat . | . . . . . . . . . . . Robot Hacks Applied . | . . . . . . . . . . . Relay Couplers Released . | . . . . . . . . . . . Fabnet Peak Effective % . | . . . . . . . . . . . Robots Rewired . | . . . . . . . . . . . Allies Hacked . | . . . . . . . . . . . Hacks Repelled . | . . . . . . . . . . . Allies | -11 -10 -10 -9 -9 -9 -8 -8 -7 -7 -7 -------- Run | Scr Mat Min Mat Min Exi Min Mat Fac Sto Gar Total Allies 4 | . . . . 2 . . . . . 2 Largest Group 2 | . . . . 2 2 . . . . 2 Highest-Rated Group 56 | . . . . 41 41 . . . . 56 Highest-Rated Ally 31 | . . . . 31 31 . . . . 31 Total Orders . | . . . . . . . . . . . Ally Attacks 5 | . . . . . . . . . . 5 Total Damage 97 | . . . . . . . . . . 97 Kills 1 | . . . . . . . . . . 1 Allies Corrupted . | . . . . . . . . . . . Allies Melted . | . . . . . . . . . . . Intel | -11 -10 -10 -9 -9 -9 -8 -8 -7 -7 -7 ------- Run | Scr Mat Min Mat Min Exi Min Mat Fac Sto Gar Robot Analysis Total . | . . . . . . . . . . . Derelict Logs Recovered 1 | . . 1 . . . . . . . . Drone Launches . | . . . . . . . . . . . Drone Recoveries . | . . . . . . . . . . . Exploration | -11 -10 -10 -9 -9 -9 -8 -8 -7 -7 -7 ------------- Run | Scr Mat Min Mat Min Exi Min Mat Fac Sto Gar Turns Passed 1142 | 25 80 62 99 181 263 38 74 148 146 26 Spaces Moved 1885 | 42 154 124 189 310 360 57 132 234 242 41 Core 1874 | 42 154 124 189 310 360 57 132 223 242 41 Treads 7 | . . . . . . . . 7 . . Legs . | . . . . . . . . . . . Wheels . | . . . . . . . . . . . Hover . | . . . . . . . . . . . Flight 4 | . . . . . . . . 4 . . Fastest Speed 50 | 50 50 50 50 50 50 50 50 50 50 50 Average Speed 50 | 50 50 50 50 50 50 50 50 52 50 50 Slowest Speed 145 | 50 50 50 50 50 50 50 50 145 50 50 Overloaded Moves . | . . . . . . . . . . . Propulsion Burnouts . | . . . . . . . . . . . Robots Hopped 3 | . . . . . . . . 3 . . Cave-ins Triggered . | . . . . . . . . . . . Exploration Rate (%) 35 | 3 35 43 26 75 90 20 21 11 60 8 Regions Visited 10 Branch Regions 5 Pre-discovered Areas . | . . . . . . . . . . . Known Exits Taken 4 | . . . 1 . . 1 . 1 1 . Unknown Exits Taken 6 | 1 1 1 . 1 1 . 1 . . . Scrap Searched 3 | . . 1 . 2 . . . . . . Spaces Dug 5 | . . . . . . . . 4 1 . Terrain Destroyed 5 | . . . . . . . . 4 1 . Melee 5 | . . . . . . . . 4 1 . Projectile . | . . . . . . . . . . . AOE . | . . . . . . . . . . . Terrain Rammed . | . . . . . . . . . . . Walls Destroyed . | . . . . . . . . . . . Machines Disabled . | . . . . . . . . . . . Actions | -11 -10 -10 -9 -9 -9 -8 -8 -7 -7 -7 --------- Run | Scr Mat Min Mat Min Exi Min Mat Fac Sto Gar Total 2029 | 44 155 123 191 335 441 65 137 241 254 43 Wait 113 | . . . . 24 80 9 . . . . Move 1872 | 41 153 123 188 309 359 56 131 229 242 41 Hop 1 | . . . . . . . . 1 . . Pick Up 4 | 1 . . . 2 . . 1 . . . Fast Attach 16 | 2 2 . 3 . 1 . 3 1 4 . Attach . | . . . . . . . . . . . Detach . | . . . . . . . . . . . Swap 1 | . . . . . . . 1 . . . Drop . | . . . . . . . . . . . Fire . | . . . . . . . . . . . Melee 14 | . . . . . . . . 7 5 2 Ram 1 | . . . . . . . 1 . . . Kick . | . . . . . . . . . . . Crush 3 | . . . . . . . . . 3 . Escape Stasis 3 | . . . . . . . . 3 . . Rewire 1 | . . . . . 1 . . . . . Trap . | . . . . . . . . . . . Miscellaneous . | . . . . . . . . . . . Route ------- -11/Scrapyard -10/Materials (discovered 2 exits: *Mat / [*Min]) -10/Mines -9/Materials (discovered 3 exits: *Mat / *Min x2) -9/Mines -9/Exiles (discovered 2 exits: [*Min x2]) -8/Mines -8/Materials -7/Factory (discovered 3 exits: *Sto / Low x2) -7/Storage (discovered 2 exits: [Rec] / Gar) -7/Garrison History --------- Turn | Location | Event 10 | -11/Scrapyard | Discovered new exit (range 15) 26 | -11/Scrapyard | Entered Materials 59 | -10/Materials | Discovered new exit (range 16) 99 | -10/Materials | Discovered new exit (range 16) 106 | -10/Materials | Entered Mines 107 | -10/Mines | Assembled infested the area 112 | -10/Mines | Assisted by a Guerilla fighting off Assembled 158 | -10/Mines | Learned location of 1 exit from Materials 161 | -10/Mines | Discovered new exit (range 15) 168 | -10/Mines | Entered Materials 168 | -9/Materials | Evolved 2 slots: Propulsion x1, Utility x1 169 | -9/Materials | Identified exit to Materials 181 | -9/Materials | Lost 3 parts (1n2u) 242 | -9/Materials | Identified exit to Mines 267 | -9/Materials | Entered Mines 316 | -9/Mines | Build established: Mutant 422 | -9/Mines | Deemed a non-threat by the Exiles lab entrance 422 | -9/Mines | Discovered new exit (range 5) 448 | -9/Mines | Entered Exiles 448 | -9/Exiles | Found Exiles lab destroyed 448 | -9/Exiles | Accompanied by 2 allies 455 | -9/Exiles | Discovered new exit (range 16) 478 | -9/Exiles | Led the pair of lost Derelicts to a safe place 504 | -9/Exiles | Opened EX-Vault 507 | -9/Exiles | Found Prototype Processor 507 | -9/Exiles | Identified 0b10 Alert Chip 630 | -9/Exiles | Discovered new exit (range 16) 711 | -9/Exiles | Entered Mines 746 | -8/Mines | Discovered exit to Materials (range 5) 749 | -8/Mines | Entered Materials 749 | -8/Materials | Evolved 2 slots: Propulsion x1, Utility x1 812 | -8/Materials | Discovered new exit (range 18) 823 | -8/Materials | Entered Factory 823 | -7/Factory | Evolved 2 slots: Propulsion x1, Utility x1 835 | -7/Factory | Identified exit to Storage 835 | -7/Factory | Identified exit to Lower Caves 971 | -7/Factory | Entered Storage 979 | -7/Storage | Lost 3 parts (3n) 996 | -7/Storage | Discovered new exit (range 18) 1076 | -7/Storage | Core integrity fell below 50% 1117 | -7/Storage | Identified exit to Garrison 1117 | -7/Storage | Entered Garrison 1136 | -7/Garrison | Rescued a captive Derelict 1137 | -7/Garrison | Rescued a captive Derelict 1138 | -7/Garrison | Core integrity fell below 20% 1143 | -7/Garrison | Destroyed by Y-54 Guardian with Gatling Laser Last Messages --------------- 01084_ Med. Treads destroyed. 01085_ Slammed into W-25 Informer. 01089_ >> Machine Analyzer network decryption results: 01089_ Repair Station x1 01098_ Med. Treads destroyed. 01103_ >> Machine Analyzer network decryption results: 01103_ Garrison Access x1 01117_ Connecting with Garrison Access... >>Unlock Access door unlocked. 01117_ EXIT=UNLOCKED: GARRISON LOCATION=GARRISON GOAL=ESCAPE 01134_ Med. Treads destroyed. Sealed Heavy Doors activated. 01136_ 13-5KM(l): "WARLORD FOREVER!" 01137_ 5K-SDL(g): "WARLORD FOREVER!" 01139_ Y-54 Guardian suffers critical hit (Burn). 01140_ Adv. Weight Redist. System destroyed. 01142_ S-27 Virus destroyed. Map ----- +----------------------------------------------------+ | ???????????????????????????????????????????????? | | ???????????????????????????????????????????????? | | ???????????????????????????????????????????????? | | ???????????????????????????????????????????????? | | ???????????????????????????????????????????????? | | ???????????????????????????????????????????????? | | ???????????????????????????????????????????????? | | ???????????????????????????????????????????????? | | ???????????????????????????????????????????????? | | ???????????????????????????????????????????????? | | ???????????????????????#####???????????????????? | | ???????????????????????# #???????????????????? | | ????????????# ######### ###########?????????? | | ????????????# #?????????? | | ????????????# #?????????? | | ????????????####################### #?????????? | | ??????????????????????????????????# #?????????? | | ??????????????????????????????????# #?????????? | | ??????????????????????????????????" #?????????? | | ??????????????????????????????????" #?????????? | | ??????????????????????????????????" #?????????? | | ?????????????????????#######??????# #?????????? | | ?????????????????????# #gYY#??????# #?????????? | | ?????????????????????# l #??????# #?????????? | | ?????????????????????###%= #??????# #?????????? | | ???????????????????????##@##??????# #?????????? | | ????????????????????????#s###"""### #?????????? | | ????????????????????????#s ^#?????????? | | ????????????????????????# #?????????? | | ????????????????????????##### ######?????????? | | ???????????????????????????#"""""#?????????????? | | ???????????????????????????#######?????????????? | | ???????????????????????????????????????????????? | | ???????????????????????????????????????????????? | | ???????????????????????????????????????????????? | | ???????????????????????????????????????????????? | | ???????????????????????????????????????????????? | | ???????????????????????????????????????????????? | | | | | | | | | | | | | | | | | | | | | | | | | +----------------------------------------------------+ Best States ------------- Heat Dissipation 34 Energy Generation 5 Energy Capacity 100 Matter Stores 300 Matter Capacity 300 Sight Range 18 Terrain Scan Density 10 Propulsion Shielding 33 Evasion (%) 50 Recoil Reduction 3 Item Schematics ----------------- None Robot Schematics ------------------ None Fabricated ------------ Nothing Alien Tech Used ----------------- None Achievements -------------- None Challenges ------------ None Game ------ Seed OmegaSiegeNullifier Manual? 0 Play Time 00:15:18 Cumulative 644.4 hours Start 2022.07.19 @ 12:18:17 End 2022.07.19 @ 12:33:06 Sessions 1 Manual Loads 0 Difficulty Rogue Special Mode None Game No. 491 Rogue 491 Adventurer 0 Explorer 0 Win Type - Total 166 Types 91/9/49/6/3/2/4/1/1 Lore% 95 Gallery% 93 Achievement% 84 Wizard Run 0 Options --------- ASCII 1 Keyboard 0 Movement Vi Keybinds 0 Fullscreen 1 Font 16/Smallcaps Map View 184x79 Tactical HUD 1 Map Filters NONE Filters NONE Steam 1 RUN: b08593b5-38b8-4f3c-88f8-0ea08d974df2